bitfinex/quotes_SOLUSD_20251115
["timestamp","ask_amount","ask_price","bid_price","bid_amount"]
[1763207041660,34.90781997,140.79,140.78,0.48170749]
[1763207041861,9.78882769,140.75,140.71,0.67]
[1763207042324,11.53661997,140.73,140.7,0.1]
[1763207042606,9.78882769,140.71,140.7,0.1]
[1763207042901,12.25661997,140.71,140.7,0.1]
[1763207044769,34.90781997,140.71,140.7,0.1]
[1763207045275,33.16002769,140.71,140.7,0.1]
[1763207045474,34.90781997,140.71,140.7,0.1]
[1763207048267,33.16002769,140.71,140.7,0.1]
[1763207048470,34.90781997,140.71,140.7,0.1]
[1763207052079,33.16002769,140.71,140.7,0.1]
[1763207052400,34.90781997,140.71,140.7,0.1]
[1763207064588,32.44002769,140.69,140.68,0.1]
[1763207064788,34.18781997,140.69,140.68,0.1]
[1763207065033,34.89781997,140.69,140.68,0.1]
[1763207065910,34.18781997,140.69,140.68,0.1]
[1763207066285,32.44002769,140.69,140.68,0.81]
[1763207068813,9.78882769,140.69,140.68,0.81]
[1763207068991,9.78882769,140.69,140.68,2.55779228]
[1763207069195,9.06882769,140.69,140.68,2.55779228]
[1763207072207,9.78882769,140.73,140.68,2.55779228]
[1763207072421,10.49882769,140.73,140.7,1.74779228]
[1763207072716,9.78882769,140.71,140.7,1.74779228]
[1763207073216,0.71,140.71,140.7,1.74779228]
[1763207075086,9.78882769,140.73,140.7,2.45779228]
[1763207075292,9.78882769,140.73,140.72,1.74779228]
[1763207076425,10.49882769,140.73,140.72,1.74779228]
[1763207077818,10.49882769,140.73,140.69,1.74779228]
[1763207077819,32.44002769,140.7,140.69,1.74779228]
[1763207078201,33.15002769,140.7,140.69,1.74779228]
[1763207078918,32.44002769,140.7,140.69,1.74779228]
[1763207079110,9.78882769,140.7,140.69,1.74779228]
[1763207080422,10.49882769,140.7,140.69,1.74779228]
[1763207083118,9.78882769,140.7,140.69,2.42779228]
[1763207083809,9.78882769,140.7,140.69,1.74779228]
[1763207085437,10.49882769,140.7,140.69,1.74779228]
[1763207085730,9.78882769,140.7,140.69,1.74779228]
[1763207089133,9.78882769,140.7,140.68,2.52779228]
[1763207089610,9.78882769,140.7,140.68,1.84779228]
[1763207089816,0.71,140.69,140.68,1.84779228]
[1763207090237,10.49882769,140.7,140.68,1.84779228]
[1763207091329,10.49882769,140.7,140.68,0.1]
[1763207091537,10.49882769,140.69,140.68,0.1]
[1763207098244,12.24661997,140.69,140.68,0.1]
[1763207100937,13.23441659,140.69,140.68,0.1]
[1763207102340,63.23441659,140.69,140.67,0.1]
[1763207102519,32.44002769,140.64,140.63,0.1]
[1763207102718,35.17561659,140.64,140.63,0.1]
[1763207102919,35.88561659,140.64,140.63,0.1]
[1763207104041,38.62120549,140.64,140.62,0.1]
[1763207104228,22.6512,140.59,140.54,0.1]
[1763207104423,9.78882769,140.56,140.54,0.78]
[1763207104939,9.78882769,140.6,140.55,2.7355889]
[1763207105121,12.52441659,140.56,140.54,0.78]
[1763207105319,13.23441659,140.56,140.54,0.1]
[1763207105842,13.23441659,140.55,140.54,0.1]
[1763207106236,12.52441659,140.55,140.54,0.1]
[1763207106427,9.78882769,140.55,140.54,0.1]
[1763207106819,12.52441659,140.55,140.54,0.1]
[1763207107625,13.23441659,140.55,140.54,0.1]
[1763207107945,12.52441659,140.55,140.54,0.1]
[1763207108145,9.78882769,140.55,140.54,0.1]
[1763207108654,13.23441659,140.55,140.54,0.1]
[1763207110850,10.49882769,140.55,140.54,0.1]
[1763207111060,13.23441659,140.55,140.54,0.1]
[1763207112333,10.49882769,140.55,140.54,0.1]
[1763207112531,13.23441659,140.55,140.54,0.1]
[1763207115638,13.23441659,140.55,140.46,7.11896908]
[1763207115639,9.78882769,140.5,140.41,7.12190492]
[1763207115845,9.78882769,140.47,140.44,3.51377947]
[1763207116048,9.78882769,140.47,140.44,2.85377947]
[1763207116255,2.7355889,140.48,140.45,0.66]
[1763207116437,3.3855889,140.48,140.45,0.66]
[1763207116636,2.7355889,140.46,140.43,7.12195741]
[1763207116835,9.78882769,140.47,140.44,0.66]
[1763207116836,12.52441659,140.47,140.44,0.66]
[1763207117235,32.44002769,140.44,140.39,0.1]
[1763207117556,22.6512,140.44,140.42,12.59313521]
[1763207117928,22.6512,140.44,140.39,7.22301342]
[1763207117929,9.78882769,140.43,140.4,2.7355889]
[1763207118130,13.17441659,140.43,140.39,12.69313521]
[1763207118429,9.78882769,140.41,140.39,2.8355889]
[1763207119264,22.6512,140.41,140.4,3.3955889]
[1763207119759,22.6512,140.41,140.4,0.66]
[1763207120133,22.6512,140.41,140.39,0.1]
[1763207120542,22.6512,140.41,140.4,2.7355889]
[1763207120744,0.65,140.43,140.4,2.7355889]
[1763207121139,0.65,140.43,140.4,3.3955889]
[1763207121140,22.6512,140.41,140.4,3.3955889]
[1763207121339,22.6512,140.41,140.39,0.1]
[1763207121637,22.6512,140.41,140.4,2.7355889]
[1763207122644,22.6512,140.41,140.39,0.76]
[1763207122960,22.6512,140.41,140.4,3.3955889]
[1763207123136,22.6512,140.41,140.39,0.1]
[1763207123333,22.6512,140.41,140.39,3.4955889]
[1763207123651,9.78882769,140.43,140.4,2.7355889]
[1763207123851,22.6512,140.42,140.41,2.7355889]
[1763207125158,9.78882769,140.43,140.41,2.7355889]
[1763207125748,22.6512,140.41,140.4,3.3955889]
[1763207125953,22.6512,140.41,140.4,2.7355889]
[1763207126346,22.6512,140.41,140.4,3.3955889]
[1763207126961,22.6512,140.41,140.39,2.95479784]
[1763207127154,23.3012,140.41,140.39,0.1]
[1763207127462,32.44002769,140.41,140.4,2.7355889]
[1763207127675,0.65,140.4,140.39,0.1]
[1763207127839,35.82561659,140.4,140.39,0.1]
[1763207128240,33.09002769,140.4,140.39,0.1]
[1763207128440,13.17441659,140.4,140.39,0.1]
[1763207129258,22.6512,140.36,140.31,3.71840786]
[1763207129563,9.78882769,140.35,140.33,2.7355889]
[1763207129768,9.78882769,140.35,140.34,2.7355889]
[1763207129982,22.6512,140.35,140.34,3.3955889]
[1763207130146,22.6512,140.35,140.3,25.60065101]
[1763207130343,22.6512,140.35,140.34,2.7355889]
[1763207130866,22.6512,140.35,140.33,0.66]
[1763207131044,22.6512,140.35,140.34,2.7355889]
[1763207131241,32.44002769,140.35,140.34,2.7355889]
[1763207133267,22.6512,140.35,140.34,2.7355889]
[1763207133965,32.44002769,140.35,140.34,2.7355889]
[1763207134471,22.6512,140.35,140.34,2.7355889]
[1763207134972,10.43882769,140.38,140.34,2.7355889]
[1763207135264,9.78882769,140.38,140.37,2.7355889]
[1763207135679,9.78882769,140.43,140.37,3.3955889]
[1763207135848,9.78882769,140.43,140.4,2.7355889]
[1763207136050,22.6512,140.41,140.4,2.7355889]
[1763207136450,10.43882769,140.45,140.4,2.7355889]
[1763207136747,9.78882769,140.43,140.41,2.7355889]
[1763207137362,22.6512,140.42,140.41,2.7355889]
[1763207137578,32.44002769,140.42,140.41,2.7355889]
[1763207138849,9.78882769,140.41,140.37,0.66]
[1763207139049,9.78882769,140.41,140.4,2.7355889]
[1763207141063,9.78882769,140.43,140.4,2.7355889]
[1763207141264,9.78882769,140.43,140.41,2.7355889]
[1763207141980,9.78882769,140.41,140.39,2.7355889]
[1763207142178,9.78882769,140.41,140.38,2.7355889]
[1763207142353,10.43882769,140.42,140.39,2.7355889]
[1763207142887,9.78882769,140.4,140.39,2.7355889]
[1763207143788,35.89561659,140.4,140.34,2.7355889]
[1763207143969,33.16002769,140.4,140.36,2.7355889]
[1763207144371,9.78882769,140.38,140.35,2.7355889]
[1763207144571,22.6512,140.37,140.34,2.7355889]
[1763207144767,23.3712,140.37,140.31,8.44437198]
[1763207144962,10.50882769,140.36,140.31,8.44437198]
[1763207145169,0.72,140.35,140.32,2.7355889]
[1763207146375,0.72,140.35,140.33,2.7355889]
[1763207146969,9.78882769,140.34,140.32,2.7355889]
[1763207147361,10.50882769,140.34,140.32,2.7355889]
[1763207149603,9.78882769,140.32,140.29,0.66]
[1763207149764,9.78882769,140.32,140.31,2.7355889]
[1763207150264,9.78882769,140.32,140.3,2.7355889]
[1763207150596,9.78882769,140.35,140.31,2.7355889]
[1763207150770,9.78882769,140.35,140.32,2.7355889]
[1763207151189,10.50882769,140.35,140.32,2.7355889]
[1763207151793,9.78882769,140.35,140.32,3.3955889]
[1763207151965,9.78882769,140.38,140.34,2.7355889]
[1763207152166,12.63462196,140.46,140.36,2.7355889]
[1763207152167,3.4555889,140.41,140.36,2.7355889]
[1763207152368,0.72,140.41,140.36,2.7355889]
[1763207152582,0.72,140.4,140.36,3.3955889]
[1763207152787,26.1067889,140.42,140.37,3.3955889]
[1763207152997,9.78882769,140.4,140.37,2.7355889]
[1763207153701,0.72,140.4,140.37,2.7355889]
[1763207153866,9.78882769,140.41,140.37,2.7355889]
[1763207154070,9.78882769,140.41,140.38,2.7355889]
[1763207154368,9.78882769,140.41,140.38,3.3955889]
[1763207154668,0.72,140.4,140.37,2.7355889]
[1763207154868,0.72,140.4,140.36,2.7355889]
[1763207155569,0.72,140.4,140.36,0.66]
[1763207155778,0.72,140.4,140.36,3.3955889]
[1763207156897,0.72,140.4,140.36,2.7355889]
[1763207157071,0.72,140.4,140.36,3.3955889]
[1763207158601,3.4555889,140.4,140.35,9.8635868]
[1763207158802,9.78882769,140.38,140.34,2.7355889]
[1763207158973,12.52441659,140.38,140.34,22.07862706]
[1763207159294,12.52441659,140.38,140.35,0.66]
[1763207159495,13.24441659,140.38,140.35,0.66]
[1763207159869,12.52441659,140.38,140.35,0.66]
[1763207160070,13.24441659,140.38,140.35,0.66]
[1763207160777,12.52441659,140.38,140.35,0.66]
[1763207160965,11.54685583,140.38,140.35,0.66]
[1763207161171,9.78882769,140.38,140.35,0.66]
[1763207161692,1.75802814,140.39,140.35,0.66]
[1763207161991,9.78882769,140.38,140.35,0.66]
[1763207162362,9.78882769,140.38,140.35,22.07709798]
[1763207162987,9.78882769,140.38,140.36,0.66]
[1763207163191,9.78882769,140.4,140.36,2.41802814]
[1763207163695,9.78882769,140.4,140.37,0.66]
[1763207164190,9.78882769,140.4,140.37,10.44882769]
[1763207164394,9.78882769,140.4,140.37,0.66]
[1763207164693,9.78882769,140.4,140.37,11.10882769]
[1763207164994,9.78882769,140.4,140.37,0.66]
[1763207165200,9.78882769,140.4,140.36,12.86685583]
[1763207165375,9.78882769,140.4,140.37,0.66]
[1763207165580,10.50882769,140.4,140.37,0.66]
[1763207165784,2.47802814,140.39,140.35,0.66]
[1763207166294,2.47802814,140.39,140.35,11.76882769]
[1763207166590,2.47802814,140.39,140.34,8.88352205]
[1763207166795,2.47802814,140.39,140.35,0.66]
[1763207167183,0.72,140.39,140.35,0.66]
[1763207167610,2.47802814,140.39,140.35,0.66]
[1763207167798,0.72,140.39,140.35,0.66]
[1763207167993,12.26685583,140.4,140.35,0.66]
[1763207168184,10.50882769,140.4,140.35,0.66]
[1763207168384,12.26685583,140.4,140.35,0.66]
[1763207168581,2.47802814,140.39,140.35,0.66]
[1763207170402,0.72,140.38,140.34,2.41802814]
[1763207170706,12.26685583,140.4,140.35,2.41802814]
[1763207171180,12.26685583,140.4,140.36,0.66]
[1763207171578,10.50882769,140.4,140.36,0.66]
[1763207171798,12.26685583,140.4,140.36,0.66]
[1763207171999,1.75802814,140.4,140.36,0.66]
[1763207172304,11.54685583,140.41,140.36,1.91802814]
[1763207172503,11.54685583,140.41,140.36,1.75802814]
[1763207172700,0.69,140.4,140.36,1.75802814]
[1763207173700,11.54685583,140.41,140.36,1.75802814]
[1763207173898,0.7,140.4,140.35,8.88304283]
[1763207174109,2.45802814,140.4,140.35,8.88304283]
[1763207174307,2.45802814,140.4,140.36,0.44]
[1763207174614,11.54685583,140.41,140.36,2.19802814]
[1763207174778,10.48882769,140.41,140.36,2.19802814]
[1763207174978,10.48882769,140.41,140.37,0.44]
[1763207175474,11.54685583,140.41,140.36,1.75802814]
[1763207175787,10.48882769,140.41,140.37,0.44]
[1763207176091,12.24685583,140.41,140.37,0.44]
[1763207176290,0.7,140.4,140.36,0.44]
[1763207176604,12.24685583,140.41,140.36,0.44]
[1763207177009,0.7,140.4,140.36,0.44]
[1763207177206,12.24685583,140.41,140.36,2.19802814]
[1763207177514,11.54685583,140.41,140.36,2.19802814]
[1763207177806,9.78882769,140.41,140.37,0.44]
[1763207178192,11.54685583,140.41,140.37,0.44]
[1763207178701,9.78882769,140.44,140.38,1.75802814]
[1763207178918,1.75802814,140.41,140.37,0.44]
[1763207179683,12.24685583,140.42,140.37,0.44]
[1763207179883,2.45802814,140.41,140.37,0.44]
[1763207183723,9.78882769,140.42,140.34,2.19802814]
[1763207183724,1.75802814,140.39,140.34,2.19802814]
[1763207184088,2.45802814,140.39,140.35,0.44]
[1763207184297,12.24685583,140.4,140.35,2.19802814]
[1763207184714,12.24685583,140.4,140.36,0.44]
[1763207186089,2.45802814,140.39,140.35,0.44]
[1763207187307,11.54685583,140.36,140.31,0.44]
[1763207187606,1.75802814,140.35,140.31,0.44]
[1763207187790,2.45802814,140.35,140.31,0.44]
[1763207188804,11.54685583,140.36,140.31,2.19802814]
[1763207189004,12.24685583,140.36,140.31,2.19802814]
[1763207189212,12.24685583,140.36,140.32,0.44]
[1763207189908,10.48882769,140.36,140.32,0.44]
[1763207190207,12.24685583,140.36,140.32,0.44]
[1763207191494,11.54685583,140.36,140.32,0.44]
[1763207191694,2.45802814,140.35,140.3,2.19802814]
[1763207192103,9.78882769,140.34,140.3,0.44]
[1763207192411,9.78882769,140.34,140.3,2.19802814]
[1763207192913,10.48882769,140.34,140.31,0.44]
[1763207193626,9.78882769,140.34,140.31,0.44]
[1763207198623,11.54685583,140.34,140.31,0.44]
[1763207198815,0.7,140.33,140.29,2.19802814]
[1763207199025,9.78882769,140.32,140.27,0.44]
[1763207199197,0.7,140.31,140.28,1.75802814]
[1763207199593,0.7,140.31,140.24,13.21681292]
[1763207199794,0.7,140.31,140.27,1.75802814]
[1763207200222,0.7,140.34,140.3,1.75802814]
[1763207200416,22.6512,140.34,140.32,1.75802814]
[1763207200612,0.7,140.35,140.32,1.75802814]
[1763207201325,0.7,140.35,140.31,2.19802814]
[1763207201722,2.45802814,140.35,140.31,2.19802814]
[1763207202035,22.6512,140.34,140.3,1.75802814]
[1763207202412,23.3512,140.34,140.3,2.19802814]
[1763207202930,0.67,140.33,140.3,1.75802814]
[1763207203923,0.67,140.33,140.3,2.19802814]
[1763207204306,9.78882769,140.34,140.3,2.19802814]
[1763207204618,10.45882769,140.34,140.3,2.19802814]
[1763207204824,10.45882769,140.34,140.3,1.75802814]
[1763207204825,0.67,140.33,140.3,1.75802814]
[1763207205148,0.67,140.33,140.29,1.75802814]
[1763207205430,10.45882769,140.34,140.3,2.19802814]
[1763207205928,0.67,140.33,140.28,7.12856464]
[1763207206134,0.67,140.33,140.3,1.75802814]
[1763207206528,10.45882769,140.34,140.3,2.19802814]
[1763207206728,10.45882769,140.34,140.3,0.44]
[1763207206912,10.45882769,140.34,140.3,2.19802814]
[1763207207449,9.78882769,140.32,140.28,2.19802814]
[1763207207611,9.78882769,140.32,140.28,0.44]
[1763207207811,10.45882769,140.32,140.28,2.19802814]
[1763207208306,10.45882769,140.32,140.29,1.75802814]
[1763207208816,10.45882769,140.32,140.28,0.44]
[1763207208817,9.78882769,140.28,140.2,4.15963224]
[1763207209042,9.78882769,140.25,140.21,1.75802814]
[1763207209505,10.45882769,140.25,140.21,2.19802814]
[1763207209709,1.75802814,140.26,140.22,2.19802814]
[1763207209710,9.78882769,140.26,140.22,2.19802814]
[1763207209943,9.78882769,140.26,140.2,3.71963224]
[1763207210113,12.21685583,140.26,140.21,2.19802814]
[1763207210315,0.67,140.25,140.21,2.19802814]
[1763207210540,10.45882769,140.25,140.21,2.19802814]
[1763207211036,10.45882769,140.25,140.22,1.75802814]
[1763207211415,9.78882769,140.24,140.21,0.44]
[1763207211615,0.67,140.25,140.21,2.19802814]
[1763207211826,11.54685583,140.26,140.21,2.19802814]
[1763207212031,22.6512,140.28,140.24,1.75802814]
[1763207212240,0.67,140.31,140.26,1.75802814]
[1763207212435,2.42802814,140.31,140.26,1.75802814]
[1763207212654,2.42802814,140.31,140.26,2.19802814]
[1763207212941,0.67,140.3,140.26,2.19802814]
[1763207213147,9.78882769,140.29,140.25,0.44]
[1763207213318,9.78882769,140.29,140.26,1.75802814]
[1763207213717,10.45882769,140.29,140.26,1.75802814]
[1763207214215,0.67,140.29,140.26,1.75802814]
[1763207214439,9.78882769,140.3,140.27,1.75802814]
[1763207214633,10.45882769,140.3,140.28,1.75802814]
[1763207214829,0.67,140.29,140.27,1.75802814]
[1763207215337,9.78882769,140.3,140.27,1.75802814]
[1763207215338,10.45882769,140.3,140.27,1.75802814]
[1763207215720,9.78882769,140.31,140.28,1.75802814]
[1763207215922,10.45882769,140.31,140.28,1.75802814]
[1763207216243,9.78882769,140.31,140.28,1.75802814]
[1763207216540,0.67,140.3,140.28,1.75802814]
[1763207217245,9.78882769,140.31,140.28,1.75802814]
[1763207217421,10.45882769,140.31,140.28,1.75802814]
[1763207217622,0.67,140.3,140.24,0.44]
[1763207217943,9.78882769,140.31,140.28,1.75802814]
[1763207218125,10.45882769,140.31,140.29,1.75802814]
[1763207218742,10.45882769,140.31,140.28,1.75802814]
[1763207219229,10.45882769,140.31,140.29,1.75802814]
[1763207219425,0.67,140.3,140.23,7.13101735]
[1763207219653,0.67,140.3,140.29,1.75802814]
[1763207221128,0.67,140.32,140.29,1.75802814]
[1763207221335,9.78882769,140.34,140.3,1.75802814]
[1763207221523,12.21685583,140.34,140.3,1.75802814]
[1763207221727,9.78882769,140.32,140.3,1.75802814]
[1763207222135,25.07922814,140.31,140.22,14.16375211]
[1763207222336,23.3212,140.31,140.28,1.75802814]
[1763207222553,10.45882769,140.3,140.28,1.75802814]
[1763207222723,0.67,140.29,140.28,1.75802814]
[1763207222926,0.67,140.29,140.28,2.74950832]
[1763207223521,10.45882769,140.3,140.28,2.74950832]
[1763207223826,10.45882769,140.3,140.29,2.74950832]
[1763207224441,10.45882769,140.3,140.28,2.74950832]
[1763207224658,9.78882769,140.28,140.22,3.18950832]
[1763207224822,9.78882769,140.28,140.27,2.74950832]
[1763207225163,0.67,140.27,140.26,2.74950832]
[1763207226653,0.67,140.27,140.26,1.74950832]
[1763207227025,10.45882769,140.27,140.2,7.57108462]
[1763207227248,10.45882769,140.27,140.26,2.74950832]
[1763207227547,10.45882769,140.27,140.22,3.18950832]
[1763207227847,10.45882769,140.27,140.26,2.74950832]
[1763207228046,9.78882769,140.27,140.26,2.74950832]
[1763207228347,9.78882769,140.28,140.25,2.74950832]
[1763207228845,32.44002769,140.26,140.25,2.74950832]
[1763207229357,10.45882769,140.26,140.25,2.74950832]
[1763207229964,9.78882769,140.25,140.19,0.54]
[1763207230248,9.78882769,140.24,140.2,2.74950832]
[1763207230568,13.20833601,140.24,140.2,2.74950832]
[1763207230722,10.45882769,140.23,140.2,2.74950832]
[1763207231128,0.67,140.22,140.2,2.74950832]
[1763207231362,10.45882769,140.22,140.19,0.1]
[1763207231653,10.45882769,140.22,140.21,2.74950832]
[1763207232230,10.45882769,140.22,140.19,0.1]
[1763207232429,0.67,140.21,140.2,2.74950832]
[1763207234338,0.67,140.21,140.19,0.1]
[1763207234540,0.67,140.21,140.2,2.74950832]
[1763207234936,9.78882769,140.22,140.2,2.74950832]
[1763207235149,9.78882769,140.22,140.19,0.1]
[1763207235332,9.78882769,140.2,140.19,2.84950832]
[1763207235533,9.78882769,140.23,140.19,2.84950832]
[1763207235745,10.46882769,140.23,140.19,2.84950832]
[1763207235962,0.68,140.22,140.19,2.84950832]
[1763207236131,0.68,140.22,140.19,0.1]
[1763207236329,0.68,140.22,140.2,2.74950832]
[1763207237443,0.68,140.22,140.21,2.74950832]
[1763207237853,0.68,140.22,140.19,0.1]
[1763207238151,0.68,140.22,140.21,2.74950832]
[1763207238656,0.68,140.22,140.19,0.1]
[1763207238855,0.68,140.22,140.2,2.74950832]
[1763207239155,0.68,140.22,140.19,0.1]
[1763207239357,0.68,140.22,140.21,2.74950832]
[1763207239956,0.68,140.23,140.21,2.74950832]
[1763207240150,10.46882769,140.23,140.22,2.74950832]
[1763207241461,9.78882769,140.26,140.22,5.93901664]
[1763207241644,0.68,140.27,140.22,5.93901664]
[1763207241645,9.78882769,140.27,140.25,2.74950832]
[1763207241958,0.68,140.28,140.26,2.74950832]
[1763207242166,0.68,140.28,140.23,0.44]
[1763207242167,10.46882769,140.28,140.27,2.74950832]
[1763207244445,10.46882769,140.28,140.25,2.74950832]
[1763207244659,0.68,140.27,140.26,2.74950832]
[1763207244855,0.68,140.28,140.26,2.74950832]
[1763207245053,9.78882769,140.27,140.26,2.74950832]
[1763207245467,10.46882769,140.27,140.26,2.74950832]
[1763207246942,9.78882769,140.27,140.26,2.74950832]
[1763207248063,10.46882769,140.27,140.26,2.74950832]
[1763207248564,10.46882769,140.27,140.24,2.74950832]
[1763207248764,0.68,140.26,140.24,2.74950832]
[1763207249263,10.46882769,140.26,140.25,2.74950832]
[1763207249471,9.78882769,140.26,140.25,2.74950832]
[1763207250474,10.46882769,140.26,140.25,2.74950832]
[1763207250765,0.68,140.28,140.25,2.74950832]
[1763207250972,9.78882769,140.27,140.23,0.44]
[1763207251470,10.46882769,140.27,140.23,0.44]
[1763207252058,10.46882769,140.27,140.26,2.74950832]
[1763207252565,9.78882769,140.29,140.26,3.18950832]
[1763207252760,9.78882769,140.33,140.28,2.74950832]
[1763207252955,0.68,140.33,140.3,2.74950832]
[1763207254071,0.68,140.34,140.32,2.74950832]
[1763207254289,32.44002769,140.35,140.33,2.74950832]
[1763207254290,10.46882769,140.35,140.33,2.74950832]
[1763207254668,10.46882769,140.34,140.33,2.74950832]
[1763207255058,9.78882769,140.34,140.33,2.74950832]
[1763207255965,10.46882769,140.34,140.33,2.74950832]
[1763207256657,9.78882769,140.33,140.3,0.44]
[1763207256855,69.88950832,140.4,140.3,0.44]
[1763207256856,10.46882769,140.36,140.32,2.74950832]
[1763207257079,9.78882769,140.36,140.35,2.74950832]
[1763207257379,10.46882769,140.38,140.35,2.74950832]
[1763207257704,9.78882769,140.36,140.35,2.74950832]
[1763207258057,0.68,140.36,140.35,2.74950832]
[1763207258263,12.53833601,140.39,140.35,2.74950832]
[1763207258483,9.78882769,140.36,140.35,2.74950832]
[1763207258784,0.68,140.37,140.35,2.74950832]
[1763207258983,9.78882769,140.38,140.36,2.74950832]
[1763207259191,9.78882769,140.37,140.36,2.74950832]
[1763207259362,10.46882769,140.37,140.35,2.74950832]
[1763207259686,10.46882769,140.39,140.35,2.74950832]
[1763207260059,9.78882769,140.39,140.32,7.1264724]
[1763207260267,10.46882769,140.39,140.37,2.74950832]
[1763207261181,9.78882769,140.39,140.38,2.74950832]
[1763207261378,17.14,140.4,140.38,2.74950832]
[1763207261980,17.82,140.4,140.38,2.74950832]
[1763207264288,10.49882769,140.39,140.32,3.29561306]
[1763207264474,10.49882769,140.39,140.35,2.74950832]
[1763207264787,10.49882769,140.39,140.31,7.1269672]
[1763207264788,10.49882769,140.39,140.36,2.74950832]
[1763207265215,9.78882769,140.39,140.36,2.74950832]
[1763207265489,0.71,140.38,140.33,2.74950832]
[1763207266480,0.71,140.38,140.34,3.18950832]
[1763207266673,9.78882769,140.37,140.35,2.74950832]
[1763207266857,9.78882769,140.38,140.36,2.74950832]
[1763207267060,10.49882769,140.38,140.35,2.74950832]
[1763207267288,0.71,140.37,140.31,0.44]
[1763207267584,0.71,140.37,140.34,2.74950832]
[1763207267790,9.78882769,140.36,140.32,2.74950832]
[1763207268088,0.71,140.35,140.32,2.74950832]
[1763207268456,0.71,140.35,140.33,2.74950832]
[1763207268662,10.49882769,140.37,140.33,2.74950832]
[1763207268857,0.71,140.36,140.33,2.74950832]
[1763207270985,10.49882769,140.38,140.34,2.74950832]
[1763207271187,0.71,140.37,140.34,2.74950832]
[1763207271691,10.49882769,140.37,140.33,2.74950832]
[1763207271995,0.71,140.37,140.34,2.74950832]
[1763207272292,9.78882769,140.36,140.34,2.74950832]
[1763207272589,9.78882769,140.36,140.33,2.74950832]
[1763207272790,10.49882769,140.36,140.33,2.74950832]
[1763207273593,0.71,140.35,140.33,2.74950832]
[1763207275990,10.49882769,140.37,140.34,2.74950832]
[1763207276182,9.78882769,140.37,140.34,2.74950832]
[1763207276395,10.49882769,140.37,140.34,2.74950832]
[1763207276681,9.78882769,140.37,140.36,2.74950832]
[1763207276990,9.78882769,140.38,140.36,2.74950832]
[1763207277206,9.78882769,140.38,140.34,0.44]
[1763207277369,9.78882769,140.38,140.36,2.74950832]
[1763207278171,10.49882769,140.38,140.36,2.74950832]
[1763207278596,10.49882769,140.38,140.35,2.74950832]
[1763207280700,10.49882769,140.38,140.34,0.44]
[1763207280893,10.49882769,140.38,140.36,2.74950832]
[1763207281774,10.49882769,140.38,140.35,2.74950832]
[1763207282487,2.74950832,140.41,140.36,2.74950832]
[1763207282685,9.78882769,140.39,140.36,3.18950832]
[1763207282893,9.78882769,140.39,140.36,2.74950832]
[1763207283204,0.71,140.38,140.36,2.74950832]
[1763207283700,0.71,140.38,140.35,2.74950832]
[1763207284990,0.71,140.38,140.35,1.75789509]
[1763207288006,9.78882769,140.37,140.36,1.75789509]
[1763207288983,9.78882769,140.37,140.35,1.75789509]
[1763207290816,0.71,140.38,140.33,8.88477229]
[1763207290817,9.78882769,140.35,140.33,8.88477229]
[1763207291004,9.78882769,140.37,140.33,1.75789509]
[1763207291310,0.72,140.35,140.33,1.75789509]
[1763207291482,0.72,140.35,140.31,23.0912]
[1763207291679,9.78882769,140.34,140.32,1.75789509]
[1763207292308,10.50882769,140.34,140.32,1.75789509]
[1763207293210,10.43882769,140.36,140.33,1.75789509]
[1763207293604,9.78882769,140.34,140.33,1.75789509]
[1763207294184,1.75789509,140.39,140.33,1.75789509]
[1763207294388,9.78882769,140.38,140.35,1.75789509]
[1763207294619,10.43882769,140.38,140.35,1.75789509]
[1763207294829,9.78882769,140.36,140.35,1.75789509]
[1763207295614,0.65,140.36,140.35,1.75789509]
[1763207295812,9.78882769,140.36,140.35,1.75789509]
[1763207298096,0.65,140.36,140.35,1.75789509]
[1763207302226,9.78882769,140.39,140.35,1.75789509]
[1763207302394,0.65,140.38,140.36,1.75789509]
[1763207303615,0.65,140.38,140.37,1.75789509]
[1763207303923,0.65,140.38,140.34,7.47158036]
[1763207304617,0.65,140.38,140.34,7.03158036]
[1763207304792,9.78882769,140.39,140.37,1.75789509]
[1763207304993,24.40909509,140.42,140.37,1.75789509]
[1763207305193,0.65,140.39,140.37,1.75789509]
[1763207305418,10.43882769,140.39,140.38,1.75789509]
[1763207307820,9.78882769,140.38,140.34,21.41556911]
[1763207308127,9.78882769,140.36,140.34,1.75789509]